{"text_format":"1","workbook":"xlsx","n_sheets":5,"sheets":["Hoofdmenu","Toelichting","NAW_gegevens","Verzekerden","Parameters"],"not_rendered":{"charts":0,"images":0,"macros":1,"external_links":0,"defined_names":80,"comments":0,"pivot_tables":0},"unopened":[],"bounds":{"document_bytes":16777216,"sheet_cells":100000,"rows_first":2000,"rows_last":500,"rows_between":2000,"halvings":0,"cell_chars":16384,"cell_head_chars":4096},"cells_cut":0,"cells_raw":0,"read":"whole","date_system":"1900"}

{"sheet":"Hoofdmenu","index":0,"n_rows":3,"n_cols":2,"rows_kept":3,"cut":false,"hidden":false,"merged":[[0,0,0,1],[1,0,1,1]]}
["HOOFDMENU"]
["OPGAVE VERZEKERDEN ZONDER BSN EN VERZEKERDEN ZONDER GEVERIFIEERD BSN 2024"]
["Navigatie","Afdrukken"]

{"sheet":"Toelichting","index":1,"n_rows":0,"n_cols":0,"rows_kept":0,"cut":false,"hidden":false,"merged":[[2,1,55,11]]}

{"sheet":"NAW_gegevens","index":2,"n_rows":13,"n_cols":2,"rows_kept":13,"cut":false,"hidden":false,"merged":[[2,0,2,1],[3,0,3,1]]}
[]
[]
["NAW-MENU"]
["OPGAVE VERZEKERDEN ZONDER BSN EN VERZEKERDEN ZONDER GEVERIFIEERD BSN 2024"]
[" Selecteer uw nummer:>","0000 KIES UW UZOVI-NUMMER"]
[" Uzovi-nummer:",{"$f":"MID(keuze_uzovi_nummer,1,4)","v":"0000"}]
[" Zorgverzekeraar:",{"$f":"LOOKUP(naw_uzovi_zorgverzekeraar,Parameters!A3:A23,Parameters!B3:B23)","v":"KIES UW UZOVI-NUMMER"}]
[" Plaats:",{"$f":"LOOKUP(naw_uzovi_zorgverzekeraar,Parameters!A3:A23,Parameters!D3:D23)","v":"PLAATS"}]
[" Contactpersoon:"]
[" Telefoonnummer:"]
[" E-mail:"]
[]
["N.B. Plaats is de statutaire vestigingsplaats zoals vastgelegd in het register van De Nederlandsche Bank"]

{"sheet":"Verzekerden","index":3,"n_rows":1402,"n_cols":13,"rows_kept":1402,"cut":false,"hidden":false,"merged":[[6,3,6,9],[7,3,7,9],[8,3,8,9],[9,3,9,9]]}
[]
[]
[null,null,"ZORGINSTITUUT NEDERLAND"]
[null,null,"Verzekerde periode en persoonskenmerken, tweede deelbestand:  verzekerden zonder BSN en verzekerden zonder geverifieerd BSN ",null,null,null,null,null,null,null,null,null,{"$f":"CONCATENATE(\"UZOVI: \",naw_uzovi_zorgverzekeraar)","v":"UZOVI: 0000"}]
[]
[null,null,"Format verzekerden zonder BSN"]
[null,null,null,"(aantal) detailrecords met verzekerden zonder BSN "]
[null,null,null,"(som) fracties verzekeringsperiode"]
[null,null,null,"(aantal) detailrecords met verzekerden zonder geverifieerd BSN "]
[null,null,null,"(som) fracties verzekeringsperiode"]
[]
[null,null,"Verzekerde","1= geen BSN          2= niet geverifieerd BSN","Postcode (4 cijfers)","Postcode adres Basisregistratie Personen (4 cijfers) ","Geboortejaar en -maand (JJJJMM)","Geslacht (1=man, 2=vrouw, 3=onbepaald)","Begindatum verzekering (JJJJMMDD)","Einddatum verzekering (JJJJMMDD)","Fractie verzekerde periode in 2024","Reden uitstroom Zvw","Motivatie"]
[null,null,"Verzekerde 1"]
[null,null,"Verzekerde 2"]
[null,null,"Verzekerde 3"]
[null,null,"Verzekerde 4"]
[null,null,"Verzekerde 5"]
[null,null,"Verzekerde 6"]
[null,null,"Verzekerde 7"]
[null,null,"Verzekerde 8"]
[null,null,"Verzekerde 9"]
[null,null,"Verzekerde 10"]
[null,null,"Verzekerde 11"]
[null,null,"Verzekerde 12"]
[null,null,"Verzekerde 13"]
[null,null,"Verzekerde 14"]
[null,null,"Verzekerde 15"]
[null,null,"Verzekerde 16"]
[null,null,"Verzekerde 17"]
[null,null,"Verzekerde 18"]
[null,null,"Verzekerde 19"]
[null,null,"Verzekerde 20"]
[null,null,"Verzekerde 21"]
[null,null,"Verzekerde 22"]
[null,null,"Verzekerde 23"]
[null,null,"Verzekerde 24"]
[null,null,"Verzekerde 25"]
[null,null,"Verzekerde 26"]
[null,null,"Verzekerde 27"]
[null,null,"Verzekerde 28"]
[null,null,"Verzekerde 29"]
[null,null,"Verzekerde 30"]
[null,null,"Verzekerde 31"]
[null,null,"Verzekerde 32"]
[null,null,"Verzekerde 33"]
[null,null,"Verzekerde 34"]
[null,null,"Verzekerde 35"]
[null,null,"Verzekerde 36"]
[null,null,"Verzekerde 37"]
[null,null,"Verzekerde 38"]
[null,null,"Verzekerde 39"]
[null,null,"Verzekerde 40"]
[null,null,"Verzekerde 41"]
[null,null,"Verzekerde 42"]
[null,null,"Verzekerde 43"]
[null,null,"Verzekerde 44"]
[null,null,"Verzekerde 45"]
[null,null,"Verzekerde 46"]
[null,null,"Verzekerde 47"]
[null,null,"Verzekerde 48"]
[null,null,"Verzekerde 49"]
[null,null,"Verzekerde 50"]
[null,null,"Verzekerde 51"]
[null,null,"Verzekerde 52"]
[null,null,"Verzekerde 53"]
[null,null,"Verzekerde 54"]
[null,null,"Verzekerde 55"]
[null,null,"Verzekerde 56"]
[null,null,"Verzekerde 57"]
[null,null,"Verzekerde 58"]
[null,null,"Verzekerde 59"]
[null,null,"Verzekerde 60"]
[null,null,"Verzekerde 61"]
[null,null,"Verzekerde 62"]
[null,null,"Verzekerde 63"]
[null,null,"Verzekerde 64"]
[null,null,"Verzekerde 65"]
[null,null,"Verzekerde 66"]
[null,null,"Verzekerde 67"]
[null,null,"Verzekerde 68"]
[null,null,"Verzekerde 69"]
[null,null,"Verzekerde 70"]
[null,null,"Verzekerde 71"]
[null,null,"Verzekerde 72"]
[null,null,"Verzekerde 73"]
[null,null,"Verzekerde 74"]
[null,null,"Verzekerde 75"]
[null,null,"Verzekerde 76"]
[null,null,"Verzekerde 77"]
[null,null,"Verzekerde 78"]
[null,null,"Verzekerde 79"]
[null,null,"Verzekerde 80"]
[null,null,"Verzekerde 81"]
[null,null,"Verzekerde 82"]
[null,null,"Verzekerde 83"]
[null,null,"Verzekerde 84"]
[null,null,"Verzekerde 85"]
[null,null,"Verzekerde 86"]
[null,null,"Verzekerde 87"]
[null,null,"Verzekerde 88"]
[null,null,"Verzekerde 89"]
[null,null,"Verzekerde 90"]
[null,null,"Verzekerde 91"]
[null,null,"Verzekerde 92"]
[null,null,"Verzekerde 93"]
[null,null,"Verzekerde 94"]
[null,null,"Verzekerde 95"]
[null,null,"Verzekerde 96"]
[null,null,"Verzekerde 97"]
[null,null,"Verzekerde 98"]
[null,null,"Verzekerde 99"]
[null,null,"Verzekerde 100"]
[null,null,"Verzekerde 101"]
[null,null,"Verzekerde 102"]
[null,null,"Verzekerde 103"]
[null,null,"Verzekerde 104"]
[null,null,"Verzekerde 105"]
[null,null,"Verzekerde 106"]
[null,null,"Verzekerde 107"]
[null,null,"Verzekerde 108"]
[null,null,"Verzekerde 109"]
[null,null,"Verzekerde 110"]
[null,null,"Verzekerde 111"]
[null,null,"Verzekerde 112"]
[null,null,"Verzekerde 113"]
[null,null,"Verzekerde 114"]
[null,null,"Verzekerde 115"]
[null,null,"Verzekerde 116"]
[null,null,"Verzekerde 117"]
[null,null,"Verzekerde 118"]
[null,null,"Verzekerde 119"]
[null,null,"Verzekerde 120"]
[null,null,"Verzekerde 121"]
[null,null,"Verzekerde 122"]
[null,null,"Verzekerde 123"]
[null,null,"Verzekerde 124"]
[null,null,"Verzekerde 125"]
[null,null,"Verzekerde 126"]
[null,null,"Verzekerde 127"]
[null,null,"Verzekerde 128"]
[null,null,"Verzekerde 129"]
[null,null,"Verzekerde 130"]
[null,null,"Verzekerde 131"]
[null,null,"Verzekerde 132"]
[null,null,"Verzekerde 133"]
[null,null,"Verzekerde 134"]
[null,null,"Verzekerde 135"]
[null,null,"Verzekerde 136"]
[null,null,"Verzekerde 137"]
[null,null,"Verzekerde 138"]
[null,null,"Verzekerde 139"]
[null,null,"Verzekerde 140"]
[null,null,"Verzekerde 141"]
[null,null,"Verzekerde 142"]
[null,null,"Verzekerde 143"]
[null,null,"Verzekerde 144"]
[null,null,"Verzekerde 145"]
[null,null,"Verzekerde 146"]
[null,null,"Verzekerde 147"]
[null,null,"Verzekerde 148"]
[null,null,"Verzekerde 149"]
[null,null,"Verzekerde 150"]
[null,null,"Verzekerde 151"]
[null,null,"Verzekerde 152"]
[null,null,"Verzekerde 153"]
[null,null,"Verzekerde 154"]
[null,null,"Verzekerde 155"]
[null,null,"Verzekerde 156"]
[null,null,"Verzekerde 157"]
[null,null,"Verzekerde 158"]
[null,null,"Verzekerde 159"]
[null,null,"Verzekerde 160"]
[null,null,"Verzekerde 161"]
[null,null,"Verzekerde 162"]
[null,null,"Verzekerde 163"]
[null,null,"Verzekerde 164"]
[null,null,"Verzekerde 165"]
[null,null,"Verzekerde 166"]
[null,null,"Verzekerde 167"]
[null,null,"Verzekerde 168"]
[null,null,"Verzekerde 169"]
[null,null,"Verzekerde 170"]
[null,null,"Verzekerde 171"]
[null,null,"Verzekerde 172"]
[null,null,"Verzekerde 173"]
[null,null,"Verzekerde 174"]
[null,null,"Verzekerde 175"]
[null,null,"Verzekerde 176"]
[null,null,"Verzekerde 177"]
[null,null,"Verzekerde 178"]
[null,null,"Verzekerde 179"]
[null,null,"Verzekerde 180"]
[null,null,"Verzekerde 181"]
[null,null,"Verzekerde 182"]
[null,null,"Verzekerde 183"]
[null,null,"Verzekerde 184"]
[null,null,"Verzekerde 185"]
[null,null,"Verzekerde 186"]
[null,null,"Verzekerde 187"]
[null,null,"Verzekerde 188"]
[null,null,"Verzekerde 189"]
[null,null,"Verzekerde 190"]
[null,null,"Verzekerde 191"]
[null,null,"Verzekerde 192"]
[null,null,"Verzekerde 193"]
[null,null,"Verzekerde 194"]
[null,null,"Verzekerde 195"]
[null,null,"Verzekerde 196"]
[null,null,"Verzekerde 197"]
[null,null,"Verzekerde 198"]
[null,null,"Verzekerde 199"]
[null,null,"Verzekerde 200"]
[null,null,"Verzekerde 201"]
[null,null,"Verzekerde 202"]
[null,null,"Verzekerde 203"]
[null,null,"Verzekerde 204"]
[null,null,"Verzekerde 205"]
[null,null,"Verzekerde 206"]
[null,null,"Verzekerde 207"]
[null,null,"Verzekerde 208"]
[null,null,"Verzekerde 209"]
[null,null,"Verzekerde 210"]
[null,null,"Verzekerde 211"]
[null,null,"Verzekerde 212"]
[null,null,"Verzekerde 213"]
[null,null,"Verzekerde 214"]
[null,null,"Verzekerde 215"]
[null,null,"Verzekerde 216"]
[null,null,"Verzekerde 217"]
[null,null,"Verzekerde 218"]
[null,null,"Verzekerde 219"]
[null,null,"Verzekerde 220"]
[null,null,"Verzekerde 221"]
[null,null,"Verzekerde 222"]
[null,null,"Verzekerde 223"]
[null,null,"Verzekerde 224"]
[null,null,"Verzekerde 225"]
[null,null,"Verzekerde 226"]
[null,null,"Verzekerde 227"]
[null,null,"Verzekerde 228"]
[null,null,"Verzekerde 229"]
[null,null,"Verzekerde 230"]
[null,null,"Verzekerde 231"]
[null,null,"Verzekerde 232"]
[null,null,"Verzekerde 233"]
[null,null,"Verzekerde 234"]
[null,null,"Verzekerde 235"]
[null,null,"Verzekerde 236"]
[null,null,"Verzekerde 237"]
[null,null,"Verzekerde 238"]
[null,null,"Verzekerde 239"]
[null,null,"Verzekerde 240"]
[null,null,"Verzekerde 241"]
[null,null,"Verzekerde 242"]
[null,null,"Verzekerde 243"]
[null,null,"Verzekerde 244"]
[null,null,"Verzekerde 245"]
[null,null,"Verzekerde 246"]
[null,null,"Verzekerde 247"]
[null,null,"Verzekerde 248"]
[null,null,"Verzekerde 249"]
[null,null,"Verzekerde 250"]
[null,null,"Verzekerde 251"]
[null,null,"Verzekerde 252"]
[null,null,"Verzekerde 253"]
[null,null,"Verzekerde 254"]
[null,null,"Verzekerde 255"]
[null,null,"Verzekerde 256"]
[null,null,"Verzekerde 257"]
[null,null,"Verzekerde 258"]
[null,null,"Verzekerde 259"]
[null,null,"Verzekerde 260"]
[null,null,"Verzekerde 261"]
[null,null,"Verzekerde 262"]
[null,null,"Verzekerde 263"]
[null,null,"Verzekerde 264"]
[null,null,"Verzekerde 265"]
[null,null,"Verzekerde 266"]
[null,null,"Verzekerde 267"]
[null,null,"Verzekerde 268"]
[null,null,"Verzekerde 269"]
[null,null,"Verzekerde 270"]
[null,null,"Verzekerde 271"]
[null,null,"Verzekerde 272"]
[null,null,"Verzekerde 273"]
[null,null,"Verzekerde 274"]
[null,null,"Verzekerde 275"]
[null,null,"Verzekerde 276"]
[null,null,"Verzekerde 277"]
[null,null,"Verzekerde 278"]
[null,null,"Verzekerde 279"]
[null,null,"Verzekerde 280"]
[null,null,"Verzekerde 281"]
[null,null,"Verzekerde 282"]
[null,null,"Verzekerde 283"]
[null,null,"Verzekerde 284"]
[null,null,"Verzekerde 285"]
[null,null,"Verzekerde 286"]
[null,null,"Verzekerde 287"]
[null,null,"Verzekerde 288"]
[null,null,"Verzekerde 289"]
[null,null,"Verzekerde 290"]
[null,null,"Verzekerde 291"]
[null,null,"Verzekerde 292"]
[null,null,"Verzekerde 293"]
[null,null,"Verzekerde 294"]
[null,null,"Verzekerde 295"]
[null,null,"Verzekerde 296"]
[null,null,"Verzekerde 297"]
[null,null,"Verzekerde 298"]
[null,null,"Verzekerde 299"]
[null,null,"Verzekerde 300"]
[null,null,"Verzekerde 301"]
[null,null,"Verzekerde 302"]
[null,null,"Verzekerde 303"]
[null,null,"Verzekerde 304"]
[null,null,"Verzekerde 305"]
[null,null,"Verzekerde 306"]
[null,null,"Verzekerde 307"]
[null,null,"Verzekerde 308"]
[null,null,"Verzekerde 309"]
[null,null,"Verzekerde 310"]
[null,null,"Verzekerde 311"]
[null,null,"Verzekerde 312"]
[null,null,"Verzekerde 313"]
[null,null,"Verzekerde 314"]
[null,null,"Verzekerde 315"]
[null,null,"Verzekerde 316"]
[null,null,"Verzekerde 317"]
[null,null,"Verzekerde 318"]
[null,null,"Verzekerde 319"]
[null,null,"Verzekerde 320"]
[null,null,"Verzekerde 321"]
[null,null,"Verzekerde 322"]
[null,null,"Verzekerde 323"]
[null,null,"Verzekerde 324"]
[null,null,"Verzekerde 325"]
[null,null,"Verzekerde 326"]
[null,null,"Verzekerde 327"]
[null,null,"Verzekerde 328"]
[null,null,"Verzekerde 329"]
[null,null,"Verzekerde 330"]
[null,null,"Verzekerde 331"]
[null,null,"Verzekerde 332"]
[null,null,"Verzekerde 333"]
[null,null,"Verzekerde 334"]
[null,null,"Verzekerde 335"]
[null,null,"Verzekerde 336"]
[null,null,"Verzekerde 337"]
[null,null,"Verzekerde 338"]
[null,null,"Verzekerde 339"]
[null,null,"Verzekerde 340"]
[null,null,"Verzekerde 341"]
[null,null,"Verzekerde 342"]
[null,null,"Verzekerde 343"]
[null,null,"Verzekerde 344"]
[null,null,"Verzekerde 345"]
[null,null,"Verzekerde 346"]
[null,null,"Verzekerde 347"]
[null,null,"Verzekerde 348"]
[null,null,"Verzekerde 349"]
[null,null,"Verzekerde 350"]
[null,null,"Verzekerde 351"]
[null,null,"Verzekerde 352"]
[null,null,"Verzekerde 353"]
[null,null,"Verzekerde 354"]
[null,null,"Verzekerde 355"]
[null,null,"Verzekerde 356"]
[null,null,"Verzekerde 357"]
[null,null,"Verzekerde 358"]
[null,null,"Verzekerde 359"]
[null,null,"Verzekerde 360"]
[null,null,"Verzekerde 361"]
[null,null,"Verzekerde 362"]
[null,null,"Verzekerde 363"]
[null,null,"Verzekerde 364"]
[null,null,"Verzekerde 365"]
[null,null,"Verzekerde 366"]
[null,null,"Verzekerde 367"]
[null,null,"Verzekerde 368"]
[null,null,"Verzekerde 369"]
[null,null,"Verzekerde 370"]
[null,null,"Verzekerde 371"]
[null,null,"Verzekerde 372"]
[null,null,"Verzekerde 373"]
[null,null,"Verzekerde 374"]
[null,null,"Verzekerde 375"]
[null,null,"Verzekerde 376"]
[null,null,"Verzekerde 377"]
[null,null,"Verzekerde 378"]
[null,null,"Verzekerde 379"]
[null,null,"Verzekerde 380"]
[null,null,"Verzekerde 381"]
[null,null,"Verzekerde 382"]
[null,null,"Verzekerde 383"]
[null,null,"Verzekerde 384"]
[null,null,"Verzekerde 385"]
[null,null,"Verzekerde 386"]
[null,null,"Verzekerde 387"]
[null,null,"Verzekerde 388"]
[null,null,"Verzekerde 389"]
[null,null,"Verzekerde 390"]
[null,null,"Verzekerde 391"]
[null,null,"Verzekerde 392"]
[null,null,"Verzekerde 393"]
[null,null,"Verzekerde 394"]
[null,null,"Verzekerde 395"]
[null,null,"Verzekerde 396"]
[null,null,"Verzekerde 397"]
[null,null,"Verzekerde 398"]
[null,null,"Verzekerde 399"]
[null,null,"Verzekerde 400"]
[null,null,"Verzekerde 401"]
[null,null,"Verzekerde 402"]
[null,null,"Verzekerde 403"]
[null,null,"Verzekerde 404"]
[null,null,"Verzekerde 405"]
[null,null,"Verzekerde 406"]
[null,null,"Verzekerde 407"]
[null,null,"Verzekerde 408"]
[null,null,"Verzekerde 409"]
[null,null,"Verzekerde 410"]
[null,null,"Verzekerde 411"]
[null,null,"Verzekerde 412"]
[null,null,"Verzekerde 413"]
[null,null,"Verzekerde 414"]
[null,null,"Verzekerde 415"]
[null,null,"Verzekerde 416"]
[null,null,"Verzekerde 417"]
[null,null,"Verzekerde 418"]
[null,null,"Verzekerde 419"]
[null,null,"Verzekerde 420"]
[null,null,"Verzekerde 421"]
[null,null,"Verzekerde 422"]
[null,null,"Verzekerde 423"]
[null,null,"Verzekerde 424"]
[null,null,"Verzekerde 425"]
[null,null,"Verzekerde 426"]
[null,null,"Verzekerde 427"]
[null,null,"Verzekerde 428"]
[null,null,"Verzekerde 429"]
[null,null,"Verzekerde 430"]
[null,null,"Verzekerde 431"]
[null,null,"Verzekerde 432"]
[null,null,"Verzekerde 433"]
[null,null,"Verzekerde 434"]
[null,null,"Verzekerde 435"]
[null,null,"Verzekerde 436"]
[null,null,"Verzekerde 437"]
[null,null,"Verzekerde 438"]
[null,null,"Verzekerde 439"]
[null,null,"Verzekerde 440"]
[null,null,"Verzekerde 441"]
[null,null,"Verzekerde 442"]
[null,null,"Verzekerde 443"]
[null,null,"Verzekerde 444"]
[null,null,"Verzekerde 445"]
[null,null,"Verzekerde 446"]
[null,null,"Verzekerde 447"]
[null,null,"Verzekerde 448"]
[null,null,"Verzekerde 449"]
[null,null,"Verzekerde 450"]
[null,null,"Verzekerde 451"]
[null,null,"Verzekerde 452"]
[null,null,"Verzekerde 453"]
[null,null,"Verzekerde 454"]
[null,null,"Verzekerde 455"]
[null,null,"Verzekerde 456"]
[null,null,"Verzekerde 457"]
[null,null,"Verzekerde 458"]
[null,null,"Verzekerde 459"]
[null,null,"Verzekerde 460"]
[null,null,"Verzekerde 461"]
[null,null,"Verzekerde 462"]
[null,null,"Verzekerde 463"]
[null,null,"Verzekerde 464"]
[null,null,"Verzekerde 465"]
[null,null,"Verzekerde 466"]
[null,null,"Verzekerde 467"]
[null,null,"Verzekerde 468"]
[null,null,"Verzekerde 469"]
[null,null,"Verzekerde 470"]
[null,null,"Verzekerde 471"]
[null,null,"Verzekerde 472"]
[null,null,"Verzekerde 473"]
[null,null,"Verzekerde 474"]
[null,null,"Verzekerde 475"]
[null,null,"Verzekerde 476"]
[null,null,"Verzekerde 477"]
[null,null,"Verzekerde 478"]
[null,null,"Verzekerde 479"]
[null,null,"Verzekerde 480"]
[null,null,"Verzekerde 481"]
[null,null,"Verzekerde 482"]
[null,null,"Verzekerde 483"]
[null,null,"Verzekerde 484"]
[null,null,"Verzekerde 485"]
[null,null,"Verzekerde 486"]
[null,null,"Verzekerde 487"]
[null,null,"Verzekerde 488"]
[null,null,"Verzekerde 489"]
[null,null,"Verzekerde 490"]
[null,null,"Verzekerde 491"]
[null,null,"Verzekerde 492"]
[null,null,"Verzekerde 493"]
[null,null,"Verzekerde 494"]
[null,null,"Verzekerde 495"]
[null,null,"Verzekerde 496"]
[null,null,"Verzekerde 497"]
[null,null,"Verzekerde 498"]
[null,null,"Verzekerde 499"]
[null,null,"Verzekerde 500"]
[null,null,"Verzekerde 501"]
[null,null,"Verzekerde 502"]
[null,null,"Verzekerde 503"]
[null,null,"Verzekerde 504"]
[null,null,"Verzekerde 505"]
[null,null,"Verzekerde 506"]
[null,null,"Verzekerde 507"]
[null,null,"Verzekerde 508"]
[null,null,"Verzekerde 509"]
[null,null,"Verzekerde 510"]
[null,null,"Verzekerde 511"]
[null,null,"Verzekerde 512"]
[null,null,"Verzekerde 513"]
[null,null,"Verzekerde 514"]
[null,null,"Verzekerde 515"]
[null,null,"Verzekerde 516"]
[null,null,"Verzekerde 517"]
[null,null,"Verzekerde 518"]
[null,null,"Verzekerde 519"]
[null,null,"Verzekerde 520"]
[null,null,"Verzekerde 521"]
[null,null,"Verzekerde 522"]
[null,null,"Verzekerde 523"]
[null,null,"Verzekerde 524"]
[null,null,"Verzekerde 525"]
[null,null,"Verzekerde 526"]
[null,null,"Verzekerde 527"]
[null,null,"Verzekerde 528"]
[null,null,"Verzekerde 529"]
[null,null,"Verzekerde 530"]
[null,null,"Verzekerde 531"]
[null,null,"Verzekerde 532"]
[null,null,"Verzekerde 533"]
[null,null,"Verzekerde 534"]
[null,null,"Verzekerde 535"]
[null,null,"Verzekerde 536"]
[null,null,"Verzekerde 537"]
[null,null,"Verzekerde 538"]
[null,null,"Verzekerde 539"]
[null,null,"Verzekerde 540"]
[null,null,"Verzekerde 541"]
[null,null,"Verzekerde 542"]
[null,null,"Verzekerde 543"]
[null,null,"Verzekerde 544"]
[null,null,"Verzekerde 545"]
[null,null,"Verzekerde 546"]
[null,null,"Verzekerde 547"]
[null,null,"Verzekerde 548"]
[null,null,"Verzekerde 549"]
[null,null,"Verzekerde 550"]
[null,null,"Verzekerde 551"]
[null,null,"Verzekerde 552"]
[null,null,"Verzekerde 553"]
[null,null,"Verzekerde 554"]
[null,null,"Verzekerde 555"]
[null,null,"Verzekerde 556"]
[null,null,"Verzekerde 557"]
[null,null,"Verzekerde 558"]
[null,null,"Verzekerde 559"]
[null,null,"Verzekerde 560"]
[null,null,"Verzekerde 561"]
[null,null,"Verzekerde 562"]
[null,null,"Verzekerde 563"]
[null,null,"Verzekerde 564"]
[null,null,"Verzekerde 565"]
[null,null,"Verzekerde 566"]
[null,null,"Verzekerde 567"]
[null,null,"Verzekerde 568"]
[null,null,"Verzekerde 569"]
[null,null,"Verzekerde 570"]
[null,null,"Verzekerde 571"]
[null,null,"Verzekerde 572"]
[null,null,"Verzekerde 573"]
[null,null,"Verzekerde 574"]
[null,null,"Verzekerde 575"]
[null,null,"Verzekerde 576"]
[null,null,"Verzekerde 577"]
[null,null,"Verzekerde 578"]
[null,null,"Verzekerde 579"]
[null,null,"Verzekerde 580"]
[null,null,"Verzekerde 581"]
[null,null,"Verzekerde 582"]
[null,null,"Verzekerde 583"]
[null,null,"Verzekerde 584"]
[null,null,"Verzekerde 585"]
[null,null,"Verzekerde 586"]
[null,null,"Verzekerde 587"]
[null,null,"Verzekerde 588"]
[null,null,"Verzekerde 589"]
[null,null,"Verzekerde 590"]
[null,null,"Verzekerde 591"]
[null,null,"Verzekerde 592"]
[null,null,"Verzekerde 593"]
[null,null,"Verzekerde 594"]
[null,null,"Verzekerde 595"]
[null,null,"Verzekerde 596"]
[null,null,"Verzekerde 597"]
[null,null,"Verzekerde 598"]
[null,null,"Verzekerde 599"]
[null,null,"Verzekerde 600"]
[null,null,"Verzekerde 601"]
[null,null,"Verzekerde 602"]
[null,null,"Verzekerde 603"]
[null,null,"Verzekerde 604"]
[null,null,"Verzekerde 605"]
[null,null,"Verzekerde 606"]
[null,null,"Verzekerde 607"]
[null,null,"Verzekerde 608"]
[null,null,"Verzekerde 609"]
[null,null,"Verzekerde 610"]
[null,null,"Verzekerde 611"]
[null,null,"Verzekerde 612"]
[null,null,"Verzekerde 613"]
[null,null,"Verzekerde 614"]
[null,null,"Verzekerde 615"]
[null,null,"Verzekerde 616"]
[null,null,"Verzekerde 617"]
[null,null,"Verzekerde 618"]
[null,null,"Verzekerde 619"]
[null,null,"Verzekerde 620"]
[null,null,"Verzekerde 621"]
[null,null,"Verzekerde 622"]
[null,null,"Verzekerde 623"]
[null,null,"Verzekerde 624"]
[null,null,"Verzekerde 625"]
[null,null,"Verzekerde 626"]
[null,null,"Verzekerde 627"]
[null,null,"Verzekerde 628"]
[null,null,"Verzekerde 629"]
[null,null,"Verzekerde 630"]
[null,null,"Verzekerde 631"]
[null,null,"Verzekerde 632"]
[null,null,"Verzekerde 633"]
[null,null,"Verzekerde 634"]
[null,null,"Verzekerde 635"]
[null,null,"Verzekerde 636"]
[null,null,"Verzekerde 637"]
[null,null,"Verzekerde 638"]
[null,null,"Verzekerde 639"]
[null,null,"Verzekerde 640"]
[null,null,"Verzekerde 641"]
[null,null,"Verzekerde 642"]
[null,null,"Verzekerde 643"]
[null,null,"Verzekerde 644"]
[null,null,"Verzekerde 645"]
[null,null,"Verzekerde 646"]
[null,null,"Verzekerde 647"]
[null,null,"Verzekerde 648"]
[null,null,"Verzekerde 649"]
[null,null,"Verzekerde 650"]
[null,null,"Verzekerde 651"]
[null,null,"Verzekerde 652"]
[null,null,"Verzekerde 653"]
[null,null,"Verzekerde 654"]
[null,null,"Verzekerde 655"]
[null,null,"Verzekerde 656"]
[null,null,"Verzekerde 657"]
[null,null,"Verzekerde 658"]
[null,null,"Verzekerde 659"]
[null,null,"Verzekerde 660"]
[null,null,"Verzekerde 661"]
[null,null,"Verzekerde 662"]
[null,null,"Verzekerde 663"]
[null,null,"Verzekerde 664"]
[null,null,"Verzekerde 665"]
[null,null,"Verzekerde 666"]
[null,null,"Verzekerde 667"]
[null,null,"Verzekerde 668"]
[null,null,"Verzekerde 669"]
[null,null,"Verzekerde 670"]
[null,null,"Verzekerde 671"]
[null,null,"Verzekerde 672"]
[null,null,"Verzekerde 673"]
[null,null,"Verzekerde 674"]
[null,null,"Verzekerde 675"]
[null,null,"Verzekerde 676"]
[null,null,"Verzekerde 677"]
[null,null,"Verzekerde 678"]
[null,null,"Verzekerde 679"]
[null,null,"Verzekerde 680"]
[null,null,"Verzekerde 681"]
[null,null,"Verzekerde 682"]
[null,null,"Verzekerde 683"]
[null,null,"Verzekerde 684"]
[null,null,"Verzekerde 685"]
[null,null,"Verzekerde 686"]
[null,null,"Verzekerde 687"]
[null,null,"Verzekerde 688"]
[null,null,"Verzekerde 689"]
[null,null,"Verzekerde 690"]
[null,null,"Verzekerde 691"]
[null,null,"Verzekerde 692"]
[null,null,"Verzekerde 693"]
[null,null,"Verzekerde 694"]
[null,null,"Verzekerde 695"]
[null,null,"Verzekerde 696"]
[null,null,"Verzekerde 697"]
[null,null,"Verzekerde 698"]
[null,null,"Verzekerde 699"]
[null,null,"Verzekerde 700"]
[null,null,"Verzekerde 701"]
[null,null,"Verzekerde 702"]
[null,null,"Verzekerde 703"]
[null,null,"Verzekerde 704"]
[null,null,"Verzekerde 705"]
[null,null,"Verzekerde 706"]
[null,null,"Verzekerde 707"]
[null,null,"Verzekerde 708"]
[null,null,"Verzekerde 709"]
[null,null,"Verzekerde 710"]
[null,null,"Verzekerde 711"]
[null,null,"Verzekerde 712"]
[null,null,"Verzekerde 713"]
[null,null,"Verzekerde 714"]
[null,null,"Verzekerde 715"]
[null,null,"Verzekerde 716"]
[null,null,"Verzekerde 717"]
[null,null,"Verzekerde 718"]
[null,null,"Verzekerde 719"]
[null,null,"Verzekerde 720"]
[null,null,"Verzekerde 721"]
[null,null,"Verzekerde 722"]
[null,null,"Verzekerde 723"]
[null,null,"Verzekerde 724"]
[null,null,"Verzekerde 725"]
[null,null,"Verzekerde 726"]
[null,null,"Verzekerde 727"]
[null,null,"Verzekerde 728"]
[null,null,"Verzekerde 729"]
[null,null,"Verzekerde 730"]
[null,null,"Verzekerde 731"]
[null,null,"Verzekerde 732"]
[null,null,"Verzekerde 733"]
[null,null,"Verzekerde 734"]
[null,null,"Verzekerde 735"]
[null,null,"Verzekerde 736"]
[null,null,"Verzekerde 737"]
[null,null,"Verzekerde 738"]
[null,null,"Verzekerde 739"]
[null,null,"Verzekerde 740"]
[null,null,"Verzekerde 741"]
[null,null,"Verzekerde 742"]
[null,null,"Verzekerde 743"]
[null,null,"Verzekerde 744"]
[null,null,"Verzekerde 745"]
[null,null,"Verzekerde 746"]
[null,null,"Verzekerde 747"]
[null,null,"Verzekerde 748"]
[null,null,"Verzekerde 749"]
[null,null,"Verzekerde 750"]
[null,null,"Verzekerde 751"]
[null,null,"Verzekerde 752"]
[null,null,"Verzekerde 753"]
[null,null,"Verzekerde 754"]
[null,null,"Verzekerde 755"]
[null,null,"Verzekerde 756"]
[null,null,"Verzekerde 757"]
[null,null,"Verzekerde 758"]
[null,null,"Verzekerde 759"]
[null,null,"Verzekerde 760"]
[null,null,"Verzekerde 761"]
[null,null,"Verzekerde 762"]
[null,null,"Verzekerde 763"]
[null,null,"Verzekerde 764"]
[null,null,"Verzekerde 765"]
[null,null,"Verzekerde 766"]
[null,null,"Verzekerde 767"]
[null,null,"Verzekerde 768"]
[null,null,"Verzekerde 769"]
[null,null,"Verzekerde 770"]
[null,null,"Verzekerde 771"]
[null,null,"Verzekerde 772"]
[null,null,"Verzekerde 773"]
[null,null,"Verzekerde 774"]
[null,null,"Verzekerde 775"]
[null,null,"Verzekerde 776"]
[null,null,"Verzekerde 777"]
[null,null,"Verzekerde 778"]
[null,null,"Verzekerde 779"]
[null,null,"Verzekerde 780"]
[null,null,"Verzekerde 781"]
[null,null,"Verzekerde 782"]
[null,null,"Verzekerde 783"]
[null,null,"Verzekerde 784"]
[null,null,"Verzekerde 785"]
[null,null,"Verzekerde 786"]
[null,null,"Verzekerde 787"]
[null,null,"Verzekerde 788"]
[null,null,"Verzekerde 789"]
[null,null,"Verzekerde 790"]
[null,null,"Verzekerde 791"]
[null,null,"Verzekerde 792"]
[null,null,"Verzekerde 793"]
[null,null,"Verzekerde 794"]
[null,null,"Verzekerde 795"]
[null,null,"Verzekerde 796"]
[null,null,"Verzekerde 797"]
[null,null,"Verzekerde 798"]
[null,null,"Verzekerde 799"]
[null,null,"Verzekerde 800"]
[null,null,"Verzekerde 801"]
[null,null,"Verzekerde 802"]
[null,null,"Verzekerde 803"]
[null,null,"Verzekerde 804"]
[null,null,"Verzekerde 805"]
[null,null,"Verzekerde 806"]
[null,null,"Verzekerde 807"]
[null,null,"Verzekerde 808"]
[null,null,"Verzekerde 809"]
[null,null,"Verzekerde 810"]
[null,null,"Verzekerde 811"]
[null,null,"Verzekerde 812"]
[null,null,"Verzekerde 813"]
[null,null,"Verzekerde 814"]
[null,null,"Verzekerde 815"]
[null,null,"Verzekerde 816"]
[null,null,"Verzekerde 817"]
[null,null,"Verzekerde 818"]
[null,null,"Verzekerde 819"]
[null,null,"Verzekerde 820"]
[null,null,"Verzekerde 821"]
[null,null,"Verzekerde 822"]
[null,null,"Verzekerde 823"]
[null,null,"Verzekerde 824"]
[null,null,"Verzekerde 825"]
[null,null,"Verzekerde 826"]
[null,null,"Verzekerde 827"]
[null,null,"Verzekerde 828"]
[null,null,"Verzekerde 829"]
[null,null,"Verzekerde 830"]
[null,null,"Verzekerde 831"]
[null,null,"Verzekerde 832"]
[null,null,"Verzekerde 833"]
[null,null,"Verzekerde 834"]
[null,null,"Verzekerde 835"]
[null,null,"Verzekerde 836"]
[null,null,"Verzekerde 837"]
[null,null,"Verzekerde 838"]
[null,null,"Verzekerde 839"]
[null,null,"Verzekerde 840"]
[null,null,"Verzekerde 841"]
[null,null,"Verzekerde 842"]
[null,null,"Verzekerde 843"]
[null,null,"Verzekerde 844"]
[null,null,"Verzekerde 845"]
[null,null,"Verzekerde 846"]
[null,null,"Verzekerde 847"]
[null,null,"Verzekerde 848"]
[null,null,"Verzekerde 849"]
[null,null,"Verzekerde 850"]
[null,null,"Verzekerde 851"]
[null,null,"Verzekerde 852"]
[null,null,"Verzekerde 853"]
[null,null,"Verzekerde 854"]
[null,null,"Verzekerde 855"]
[null,null,"Verzekerde 856"]
[null,null,"Verzekerde 857"]
[null,null,"Verzekerde 858"]
[null,null,"Verzekerde 859"]
[null,null,"Verzekerde 860"]
[null,null,"Verzekerde 861"]
[null,null,"Verzekerde 862"]
[null,null,"Verzekerde 863"]
[null,null,"Verzekerde 864"]
[null,null,"Verzekerde 865"]
[null,null,"Verzekerde 866"]
[null,null,"Verzekerde 867"]
[null,null,"Verzekerde 868"]
[null,null,"Verzekerde 869"]
[null,null,"Verzekerde 870"]
[null,null,"Verzekerde 871"]
[null,null,"Verzekerde 872"]
[null,null,"Verzekerde 873"]
[null,null,"Verzekerde 874"]
[null,null,"Verzekerde 875"]
[null,null,"Verzekerde 876"]
[null,null,"Verzekerde 877"]
[null,null,"Verzekerde 878"]
[null,null,"Verzekerde 879"]
[null,null,"Verzekerde 880"]
[null,null,"Verzekerde 881"]
[null,null,"Verzekerde 882"]
[null,null,"Verzekerde 883"]
[null,null,"Verzekerde 884"]
[null,null,"Verzekerde 885"]
[null,null,"Verzekerde 886"]
[null,null,"Verzekerde 887"]
[null,null,"Verzekerde 888"]
[null,null,"Verzekerde 889"]
[null,null,"Verzekerde 890"]
[null,null,"Verzekerde 891"]
[null,null,"Verzekerde 892"]
[null,null,"Verzekerde 893"]
[null,null,"Verzekerde 894"]
[null,null,"Verzekerde 895"]
[null,null,"Verzekerde 896"]
[null,null,"Verzekerde 897"]
[null,null,"Verzekerde 898"]
[null,null,"Verzekerde 899"]
[null,null,"Verzekerde 900"]
[null,null,"Verzekerde 901"]
[null,null,"Verzekerde 902"]
[null,null,"Verzekerde 903"]
[null,null,"Verzekerde 904"]
[null,null,"Verzekerde 905"]
[null,null,"Verzekerde 906"]
[null,null,"Verzekerde 907"]
[null,null,"Verzekerde 908"]
[null,null,"Verzekerde 909"]
[null,null,"Verzekerde 910"]
[null,null,"Verzekerde 911"]
[null,null,"Verzekerde 912"]
[null,null,"Verzekerde 913"]
[null,null,"Verzekerde 914"]
[null,null,"Verzekerde 915"]
[null,null,"Verzekerde 916"]
[null,null,"Verzekerde 917"]
[null,null,"Verzekerde 918"]
[null,null,"Verzekerde 919"]
[null,null,"Verzekerde 920"]
[null,null,"Verzekerde 921"]
[null,null,"Verzekerde 922"]
[null,null,"Verzekerde 923"]
[null,null,"Verzekerde 924"]
[null,null,"Verzekerde 925"]
[null,null,"Verzekerde 926"]
[null,null,"Verzekerde 927"]
[null,null,"Verzekerde 928"]
[null,null,"Verzekerde 929"]
[null,null,"Verzekerde 930"]
[null,null,"Verzekerde 931"]
[null,null,"Verzekerde 932"]
[null,null,"Verzekerde 933"]
[null,null,"Verzekerde 934"]
[null,null,"Verzekerde 935"]
[null,null,"Verzekerde 936"]
[null,null,"Verzekerde 937"]
[null,null,"Verzekerde 938"]
[null,null,"Verzekerde 939"]
[null,null,"Verzekerde 940"]
[null,null,"Verzekerde 941"]
[null,null,"Verzekerde 942"]
[null,null,"Verzekerde 943"]
[null,null,"Verzekerde 944"]
[null,null,"Verzekerde 945"]
[null,null,"Verzekerde 946"]
[null,null,"Verzekerde 947"]
[null,null,"Verzekerde 948"]
[null,null,"Verzekerde 949"]
[null,null,"Verzekerde 950"]
[null,null,"Verzekerde 951"]
[null,null,"Verzekerde 952"]
[null,null,"Verzekerde 953"]
[null,null,"Verzekerde 954"]
[null,null,"Verzekerde 955"]
[null,null,"Verzekerde 956"]
[null,null,"Verzekerde 957"]
[null,null,"Verzekerde 958"]
[null,null,"Verzekerde 959"]
[null,null,"Verzekerde 960"]
[null,null,"Verzekerde 961"]
[null,null,"Verzekerde 962"]
[null,null,"Verzekerde 963"]
[null,null,"Verzekerde 964"]
[null,null,"Verzekerde 965"]
[null,null,"Verzekerde 966"]
[null,null,"Verzekerde 967"]
[null,null,"Verzekerde 968"]
[null,null,"Verzekerde 969"]
[null,null,"Verzekerde 970"]
[null,null,"Verzekerde 971"]
[null,null,"Verzekerde 972"]
[null,null,"Verzekerde 973"]
[null,null,"Verzekerde 974"]
[null,null,"Verzekerde 975"]
[null,null,"Verzekerde 976"]
[null,null,"Verzekerde 977"]
[null,null,"Verzekerde 978"]
[null,null,"Verzekerde 979"]
[null,null,"Verzekerde 980"]
[null,null,"Verzekerde 981"]
[null,null,"Verzekerde 982"]
[null,null,"Verzekerde 983"]
[null,null,"Verzekerde 984"]
[null,null,"Verzekerde 985"]
[null,null,"Verzekerde 986"]
[null,null,"Verzekerde 987"]
[null,null,"Verzekerde 988"]
[null,null,"Verzekerde 989"]
[null,null,"Verzekerde 990"]
[null,null,"Verzekerde 991"]
[null,null,"Verzekerde 992"]
[null,null,"Verzekerde 993"]
[null,null,"Verzekerde 994"]
[null,null,"Verzekerde 995"]
[null,null,"Verzekerde 996"]
[null,null,"Verzekerde 997"]
[null,null,"Verzekerde 998"]
[null,null,"Verzekerde 999"]
[null,null,"Verzekerde 1000"]
[null,null,"Verzekerde 1001"]
[null,null,"Verzekerde 1002"]
[null,null,"Verzekerde 1003"]
[null,null,"Verzekerde 1004"]
[null,null,"Verzekerde 1005"]
[null,null,"Verzekerde 1006"]
[null,null,"Verzekerde 1007"]
[null,null,"Verzekerde 1008"]
[null,null,"Verzekerde 1009"]
[null,null,"Verzekerde 1010"]
[null,null,"Verzekerde 1011"]
[null,null,"Verzekerde 1012"]
[null,null,"Verzekerde 1013"]
[null,null,"Verzekerde 1014"]
[null,null,"Verzekerde 1015"]
[null,null,"Verzekerde 1016"]
[null,null,"Verzekerde 1017"]
[null,null,"Verzekerde 1018"]
[null,null,"Verzekerde 1019"]
[null,null,"Verzekerde 1020"]
[null,null,"Verzekerde 1021"]
[null,null,"Verzekerde 1022"]
[null,null,"Verzekerde 1023"]
[null,null,"Verzekerde 1024"]
[null,null,"Verzekerde 1025"]
[null,null,"Verzekerde 1026"]
[null,null,"Verzekerde 1027"]
[null,null,"Verzekerde 1028"]
[null,null,"Verzekerde 1029"]
[null,null,"Verzekerde 1030"]
[null,null,"Verzekerde 1031"]
[null,null,"Verzekerde 1032"]
[null,null,"Verzekerde 1033"]
[null,null,"Verzekerde 1034"]
[null,null,"Verzekerde 1035"]
[null,null,"Verzekerde 1036"]
[null,null,"Verzekerde 1037"]
[null,null,"Verzekerde 1038"]
[null,null,"Verzekerde 1039"]
[null,null,"Verzekerde 1040"]
[null,null,"Verzekerde 1041"]
[null,null,"Verzekerde 1042"]
[null,null,"Verzekerde 1043"]
[null,null,"Verzekerde 1044"]
[null,null,"Verzekerde 1045"]
[null,null,"Verzekerde 1046"]
[null,null,"Verzekerde 1047"]
[null,null,"Verzekerde 1048"]
[null,null,"Verzekerde 1049"]
[null,null,"Verzekerde 1050"]
[null,null,"Verzekerde 1051"]
[null,null,"Verzekerde 1052"]
[null,null,"Verzekerde 1053"]
[null,null,"Verzekerde 1054"]
[null,null,"Verzekerde 1055"]
[null,null,"Verzekerde 1056"]
[null,null,"Verzekerde 1057"]
[null,null,"Verzekerde 1058"]
[null,null,"Verzekerde 1059"]
[null,null,"Verzekerde 1060"]
[null,null,"Verzekerde 1061"]
[null,null,"Verzekerde 1062"]
[null,null,"Verzekerde 1063"]
[null,null,"Verzekerde 1064"]
[null,null,"Verzekerde 1065"]
[null,null,"Verzekerde 1066"]
[null,null,"Verzekerde 1067"]
[null,null,"Verzekerde 1068"]
[null,null,"Verzekerde 1069"]
[null,null,"Verzekerde 1070"]
[null,null,"Verzekerde 1071"]
[null,null,"Verzekerde 1072"]
[null,null,"Verzekerde 1073"]
[null,null,"Verzekerde 1074"]
[null,null,"Verzekerde 1075"]
[null,null,"Verzekerde 1076"]
[null,null,"Verzekerde 1077"]
[null,null,"Verzekerde 1078"]
[null,null,"Verzekerde 1079"]
[null,null,"Verzekerde 1080"]
[null,null,"Verzekerde 1081"]
[null,null,"Verzekerde 1082"]
[null,null,"Verzekerde 1083"]
[null,null,"Verzekerde 1084"]
[null,null,"Verzekerde 1085"]
[null,null,"Verzekerde 1086"]
[null,null,"Verzekerde 1087"]
[null,null,"Verzekerde 1088"]
[null,null,"Verzekerde 1089"]
[null,null,"Verzekerde 1090"]
[null,null,"Verzekerde 1091"]
[null,null,"Verzekerde 1092"]
[null,null,"Verzekerde 1093"]
[null,null,"Verzekerde 1094"]
[null,null,"Verzekerde 1095"]
[null,null,"Verzekerde 1096"]
[null,null,"Verzekerde 1097"]
[null,null,"Verzekerde 1098"]
[null,null,"Verzekerde 1099"]
[null,null,"Verzekerde 1100"]
[null,null,"Verzekerde 1101"]
[null,null,"Verzekerde 1102"]
[null,null,"Verzekerde 1103"]
[null,null,"Verzekerde 1104"]
[null,null,"Verzekerde 1105"]
[null,null,"Verzekerde 1106"]
[null,null,"Verzekerde 1107"]
[null,null,"Verzekerde 1108"]
[null,null,"Verzekerde 1109"]
[null,null,"Verzekerde 1110"]
[null,null,"Verzekerde 1111"]
[null,null,"Verzekerde 1112"]
[null,null,"Verzekerde 1113"]
[null,null,"Verzekerde 1114"]
[null,null,"Verzekerde 1115"]
[null,null,"Verzekerde 1116"]
[null,null,"Verzekerde 1117"]
[null,null,"Verzekerde 1118"]
[null,null,"Verzekerde 1119"]
[null,null,"Verzekerde 1120"]
[null,null,"Verzekerde 1121"]
[null,null,"Verzekerde 1122"]
[null,null,"Verzekerde 1123"]
[null,null,"Verzekerde 1124"]
[null,null,"Verzekerde 1125"]
[null,null,"Verzekerde 1126"]
[null,null,"Verzekerde 1127"]
[null,null,"Verzekerde 1128"]
[null,null,"Verzekerde 1129"]
[null,null,"Verzekerde 1130"]
[null,null,"Verzekerde 1131"]
[null,null,"Verzekerde 1132"]
[null,null,"Verzekerde 1133"]
[null,null,"Verzekerde 1134"]
[null,null,"Verzekerde 1135"]
[null,null,"Verzekerde 1136"]
[null,null,"Verzekerde 1137"]
[null,null,"Verzekerde 1138"]
[null,null,"Verzekerde 1139"]
[null,null,"Verzekerde 1140"]
[null,null,"Verzekerde 1141"]
[null,null,"Verzekerde 1142"]
[null,null,"Verzekerde 1143"]
[null,null,"Verzekerde 1144"]
[null,null,"Verzekerde 1145"]
[null,null,"Verzekerde 1146"]
[null,null,"Verzekerde 1147"]
[null,null,"Verzekerde 1148"]
[null,null,"Verzekerde 1149"]
[null,null,"Verzekerde 1150"]
[null,null,"Verzekerde 1151"]
[null,null,"Verzekerde 1152"]
[null,null,"Verzekerde 1153"]
[null,null,"Verzekerde 1154"]
[null,null,"Verzekerde 1155"]
[null,null,"Verzekerde 1156"]
[null,null,"Verzekerde 1157"]
[null,null,"Verzekerde 1158"]
[null,null,"Verzekerde 1159"]
[null,null,"Verzekerde 1160"]
[null,null,"Verzekerde 1161"]
[null,null,"Verzekerde 1162"]
[null,null,"Verzekerde 1163"]
[null,null,"Verzekerde 1164"]
[null,null,"Verzekerde 1165"]
[null,null,"Verzekerde 1166"]
[null,null,"Verzekerde 1167"]
[null,null,"Verzekerde 1168"]
[null,null,"Verzekerde 1169"]
[null,null,"Verzekerde 1170"]
[null,null,"Verzekerde 1171"]
[null,null,"Verzekerde 1172"]
[null,null,"Verzekerde 1173"]
[null,null,"Verzekerde 1174"]
[null,null,"Verzekerde 1175"]
[null,null,"Verzekerde 1176"]
[null,null,"Verzekerde 1177"]
[null,null,"Verzekerde 1178"]
[null,null,"Verzekerde 1179"]
[null,null,"Verzekerde 1180"]
[null,null,"Verzekerde 1181"]
[null,null,"Verzekerde 1182"]
[null,null,"Verzekerde 1183"]
[null,null,"Verzekerde 1184"]
[null,null,"Verzekerde 1185"]
[null,null,"Verzekerde 1186"]
[null,null,"Verzekerde 1187"]
[null,null,"Verzekerde 1188"]
[null,null,"Verzekerde 1189"]
[null,null,"Verzekerde 1190"]
[null,null,"Verzekerde 1191"]
[null,null,"Verzekerde 1192"]
[null,null,"Verzekerde 1193"]
[null,null,"Verzekerde 1194"]
[null,null,"Verzekerde 1195"]
[null,null,"Verzekerde 1196"]
[null,null,"Verzekerde 1197"]
[null,null,"Verzekerde 1198"]
[null,null,"Verzekerde 1199"]
[null,null,"Verzekerde 1200"]
[null,null,"Verzekerde 1201"]
[null,null,"Verzekerde 1202"]
[null,null,"Verzekerde 1203"]
[null,null,"Verzekerde 1204"]
[null,null,"Verzekerde 1205"]
[null,null,"Verzekerde 1206"]
[null,null,"Verzekerde 1207"]
[null,null,"Verzekerde 1208"]
[null,null,"Verzekerde 1209"]
[null,null,"Verzekerde 1210"]
[null,null,"Verzekerde 1211"]
[null,null,"Verzekerde 1212"]
[null,null,"Verzekerde 1213"]
[null,null,"Verzekerde 1214"]
[null,null,"Verzekerde 1215"]
[null,null,"Verzekerde 1216"]
[null,null,"Verzekerde 1217"]
[null,null,"Verzekerde 1218"]
[null,null,"Verzekerde 1219"]
[null,null,"Verzekerde 1220"]
[null,null,"Verzekerde 1221"]
[null,null,"Verzekerde 1222"]
[null,null,"Verzekerde 1223"]
[null,null,"Verzekerde 1224"]
[null,null,"Verzekerde 1225"]
[null,null,"Verzekerde 1226"]
[null,null,"Verzekerde 1227"]
[null,null,"Verzekerde 1228"]
[null,null,"Verzekerde 1229"]
[null,null,"Verzekerde 1230"]
[null,null,"Verzekerde 1231"]
[null,null,"Verzekerde 1232"]
[null,null,"Verzekerde 1233"]
[null,null,"Verzekerde 1234"]
[null,null,"Verzekerde 1235"]
[null,null,"Verzekerde 1236"]
[null,null,"Verzekerde 1237"]
[null,null,"Verzekerde 1238"]
[null,null,"Verzekerde 1239"]
[null,null,"Verzekerde 1240"]
[null,null,"Verzekerde 1241"]
[null,null,"Verzekerde 1242"]
[null,null,"Verzekerde 1243"]
[null,null,"Verzekerde 1244"]
[null,null,"Verzekerde 1245"]
[null,null,"Verzekerde 1246"]
[null,null,"Verzekerde 1247"]
[null,null,"Verzekerde 1248"]
[null,null,"Verzekerde 1249"]
[null,null,"Verzekerde 1250"]
[null,null,"Verzekerde 1251"]
[null,null,"Verzekerde 1252"]
[null,null,"Verzekerde 1253"]
[null,null,"Verzekerde 1254"]
[null,null,"Verzekerde 1255"]
[null,null,"Verzekerde 1256"]
[null,null,"Verzekerde 1257"]
[null,null,"Verzekerde 1258"]
[null,null,"Verzekerde 1259"]
[null,null,"Verzekerde 1260"]
[null,null,"Verzekerde 1261"]
[null,null,"Verzekerde 1262"]
[null,null,"Verzekerde 1263"]
[null,null,"Verzekerde 1264"]
[null,null,"Verzekerde 1265"]
[null,null,"Verzekerde 1266"]
[null,null,"Verzekerde 1267"]
[null,null,"Verzekerde 1268"]
[null,null,"Verzekerde 1269"]
[null,null,"Verzekerde 1270"]
[null,null,"Verzekerde 1271"]
[null,null,"Verzekerde 1272"]
[null,null,"Verzekerde 1273"]
[null,null,"Verzekerde 1274"]
[null,null,"Verzekerde 1275"]
[null,null,"Verzekerde 1276"]
[null,null,"Verzekerde 1277"]
[null,null,"Verzekerde 1278"]
[null,null,"Verzekerde 1279"]
[null,null,"Verzekerde 1280"]
[null,null,"Verzekerde 1281"]
[null,null,"Verzekerde 1282"]
[null,null,"Verzekerde 1283"]
[null,null,"Verzekerde 1284"]
[null,null,"Verzekerde 1285"]
[null,null,"Verzekerde 1286"]
[null,null,"Verzekerde 1287"]
[null,null,"Verzekerde 1288"]
[null,null,"Verzekerde 1289"]
[null,null,"Verzekerde 1290"]
[null,null,"Verzekerde 1291"]
[null,null,"Verzekerde 1292"]
[null,null,"Verzekerde 1293"]
[null,null,"Verzekerde 1294"]
[null,null,"Verzekerde 1295"]
[null,null,"Verzekerde 1296"]
[null,null,"Verzekerde 1297"]
[null,null,"Verzekerde 1298"]
[null,null,"Verzekerde 1299"]
[null,null,"Verzekerde 1300"]
[null,null,"Verzekerde 1301"]
[null,null,"Verzekerde 1302"]
[null,null,"Verzekerde 1303"]
[null,null,"Verzekerde 1304"]
[null,null,"Verzekerde 1305"]
[null,null,"Verzekerde 1306"]
[null,null,"Verzekerde 1307"]
[null,null,"Verzekerde 1308"]
[null,null,"Verzekerde 1309"]
[null,null,"Verzekerde 1310"]
[null,null,"Verzekerde 1311"]
[null,null,"Verzekerde 1312"]
[null,null,"Verzekerde 1313"]
[null,null,"Verzekerde 1314"]
[null,null,"Verzekerde 1315"]
[null,null,"Verzekerde 1316"]
[null,null,"Verzekerde 1317"]
[null,null,"Verzekerde 1318"]
[null,null,"Verzekerde 1319"]
[null,null,"Verzekerde 1320"]
[null,null,"Verzekerde 1321"]
[null,null,"Verzekerde 1322"]
[null,null,"Verzekerde 1323"]
[null,null,"Verzekerde 1324"]
[null,null,"Verzekerde 1325"]
[null,null,"Verzekerde 1326"]
[null,null,"Verzekerde 1327"]
[null,null,"Verzekerde 1328"]
[null,null,"Verzekerde 1329"]
[null,null,"Verzekerde 1330"]
[null,null,"Verzekerde 1331"]
[null,null,"Verzekerde 1332"]
[null,null,"Verzekerde 1333"]
[null,null,"Verzekerde 1334"]
[null,null,"Verzekerde 1335"]
[null,null,"Verzekerde 1336"]
[null,null,"Verzekerde 1337"]
[null,null,"Verzekerde 1338"]
[null,null,"Verzekerde 1339"]
[null,null,"Verzekerde 1340"]
[null,null,"Verzekerde 1341"]
[null,null,"Verzekerde 1342"]
[null,null,"Verzekerde 1343"]
[null,null,"Verzekerde 1344"]
[null,null,"Verzekerde 1345"]
[null,null,"Verzekerde 1346"]
[null,null,"Verzekerde 1347"]
[null,null,"Verzekerde 1348"]
[null,null,"Verzekerde 1349"]
[null,null,"Verzekerde 1350"]
[null,null,"Verzekerde 1351"]
[null,null,"Verzekerde 1352"]
[null,null,"Verzekerde 1353"]
[null,null,"Verzekerde 1354"]
[null,null,"Verzekerde 1355"]
[null,null,"Verzekerde 1356"]
[null,null,"Verzekerde 1357"]
[null,null,"Verzekerde 1358"]
[null,null,"Verzekerde 1359"]
[null,null,"Verzekerde 1360"]
[null,null,"Verzekerde 1361"]
[null,null,"Verzekerde 1362"]
[null,null,"Verzekerde 1363"]
[null,null,"Verzekerde 1364"]
[null,null,"Verzekerde 1365"]
[null,null,"Verzekerde 1366"]
[null,null,"Verzekerde 1367"]
[null,null,"Verzekerde 1368"]
[null,null,"Verzekerde 1369"]
[null,null,"Verzekerde 1370"]
[null,null,"Verzekerde 1371"]
[null,null,"Verzekerde 1372"]
[null,null,"Verzekerde 1373"]
[null,null,"Verzekerde 1374"]
[null,null,"Verzekerde 1375"]
[null,null,"Verzekerde 1376"]
[null,null,"Verzekerde 1377"]
[null,null,"Verzekerde 1378"]
[null,null,"Verzekerde 1379"]
[null,null,"Verzekerde 1380"]
[null,null,"Verzekerde 1381"]
[null,null,"Verzekerde 1382"]
[null,null,"Verzekerde 1383"]
[null,null,"Verzekerde 1384"]
[null,null,"Verzekerde 1385"]
[null,null,"Verzekerde 1386"]
[null,null,"Verzekerde 1387"]
[null,null,"Verzekerde 1388"]
[null,null,"Verzekerde 1389"]
[null,null,"Verzekerde 1390"]

{"sheet":"Parameters","index":4,"n_rows":23,"n_cols":4,"rows_kept":23,"cut":false,"hidden":true,"merged":[]}
[]
["NUMMER_ZK","NAAM_ZK","FORMAT_ZK1","PLAATS"]
["0000","KIES UW UZOVI-NUMMER",{"$f":"CONCATENATE(A3,\" \",B3)","v":"0000 KIES UW UZOVI-NUMMER"},"PLAATS"]
["0101","N.V. UNIVÉ ZORG","0101 N.V. UNIVÉ ZORG","ARNHEM"]
["0104","CENTRALE ZIEKTEKOSTENVERZEKERING NZV N.V.","0104 CENTRALE ZIEKTEKOSTENVERZEKERING NZV N.V.","TILBURG"]
["0201","OHRA ZIEKTEKOSTENVERZEKERINGEN N.V.","0201 OHRA ZIEKTEKOSTENVERZEKERINGEN N.V.","TILBURG"]
["0403","ASR BASIS ZIEKTEKOSTENVERZEKERINGEN N.V.","0403 ASR BASIS ZIEKTEKOSTENVERZEKERINGEN N.V.","UTRECHT"]
["0699","IZA ZORGVERZEKERAAR N.V.","0699 IZA ZORGVERZEKERAAR N.V.","ARNHEM"]
["0736","N.V. ZORGVERZEKERAAR UMC","0736 N.V. ZORGVERZEKERAAR UMC","ARNHEM"]
["3311","ZILVEREN KRUIS ZORGVERZEKERINGEN N.V.","3311 ZILVEREN KRUIS ZORGVERZEKERINGEN N.V.","HENGELO OV"]
["3313","INTERPOLIS ZORGVERZEKERINGEN N.V.","3313 INTERPOLIS ZORGVERZEKERINGEN N.V.","LEIDEN"]
["3332","MENZIS ZORGVERZEKERAAR N.V.",{"$f":"CONCATENATE(A12,\" \",B12)","v":"3332 MENZIS ZORGVERZEKERAAR N.V."},"WAGENINGEN"]
["3333","ANDERZORG N.V.",{"$f":"CONCATENATE(A13,\" \",B13)","v":"3333 ANDERZORG N.V."},"GRONINGEN"]
["3343","ONVZ ZIEKTEKOSTENVERZEKERAAR N.V.",{"$f":"CONCATENATE(A14,\" \",B14)","v":"3343 ONVZ ZIEKTEKOSTENVERZEKERAAR N.V."},"HOUTEN"]
["3347","SALLAND ZORGVERZEKERAAR N.V.","3347 SALLAND ZORGVERZEKERAAR N.V.","DEVENTER"]
["3351","FBTO ZORGVERZEKERINGEN N.V.",{"$f":"CONCATENATE(A16,\" \",B16)","v":"3351 FBTO ZORGVERZEKERINGEN N.V."},"LEEUWARDEN"]
["3358","DE FRIESLAND","3358 DE FRIESLAND","LEEUWARDEN"]
["3359","EUCARE INSURANCE PCC LTD","3359 EUCARE INSURANCE PCC LTD","TA' XBIEX"]
["7029","OWM ZORGVERZEKERAAR 'DSW' U.A.","7029 OWM ZORGVERZEKERAAR 'DSW' U.A.","SCHIEDAM"]
["7037","STAD HOLLAND ZORGVERZEKERAAR OWM U.A.","7037 STAD HOLLAND ZORGVERZEKERAAR OWM U.A.","SCHIEDAM"]
["7085","OWM ZORGVERZEKERAAR ZORG EN ZEKERHEID U.A.","7085 OWM ZORGVERZEKERAAR ZORG EN ZEKERHEID U.A.","LEIDEN"]
["7095","VGZ ZORGVERZEKERAAR N.V.","7095 VGZ ZORGVERZEKERAAR N.V.","ARNHEM"]
["7119","OWM CENTRALE ZORGVERZEKERAARS GROEP, ZORGVERZEKERAAR U.A.","7119 OWM CENTRALE ZORGVERZEKERAARS GROEP, ZORGVERZEKERAAR U.A.","TILBURG"]